[Event "Titled Tuesday Blitz February 22 Early 2022"]
[White "Golsta, Madara"]
[Black "Petesch, Gabriel"]
[WhiteFideId "11607386"]
[BlackFideId "2032465"]
[WhiteElo "1997"]
[BlackElo "2374"]
[Result "1-0"]
[Round "01"]
[TimeControl "180+1"]
[Date "2022.02.22"]
[WhiteClock "0:00:03"]
[BlackClock "0:00:01"]

1. e4 {[%clk 0:03:00]}  e6 {[%clk 0:02:51]} 2. d4 {[%clk 0:02:59]}  d5 {[%clk 0:02:51]} 3. Nc3 {[%clk 0:02:59]}  dxe4 {[%clk 0:02:50]} 4. Nxe4 {[%clk 0:02:59]}  Nf6 {[%clk 0:02:49]} 5. Bg5 {[%clk 0:02:51]}  Be7 {[%clk 0:02:47]} 6. Bxf6 {[%clk 0:02:49]}  Bxf6 {[%clk 0:02:48]} 7. c3 {[%clk 0:02:45]}  b6 {[%clk 0:02:42]} 8. Nf3 {[%clk 0:02:43]}  Bb7 {[%clk 0:02:41]} 9. Bd3 {[%clk 0:02:43]}  O-O {[%clk 0:02:41]} 10. Qd2 {[%clk 0:02:30]}  Nd7 {[%clk 0:02:40]} 11. O-O-O {[%clk 0:02:28]}  Re8 {[%clk 0:02:12]} 12. Kb1 {[%clk 0:02:26]}  Qe7 {[%clk 0:02:07]} 13. g4 {[%clk 0:02:13]}  g6 {[%clk 0:02:04]} 14. h4 {[%clk 0:02:06]}  Rad8 {[%clk 0:01:59]} 15. h5 {[%clk 0:01:59]}  c5 {[%clk 0:01:59]} 16. hxg6 {[%clk 0:01:11]}  fxg6 {[%clk 0:01:59]} 17. g5 {[%clk 0:00:53]}  Bg7 {[%clk 0:01:53]} 18. Rh3 {[%clk 0:00:52]}  Nf8 {[%clk 0:01:48]} 19. Rdh1 {[%clk 0:00:49]}  e5 {[%clk 0:01:10]} 20. Bc4+ {[%clk 0:00:36]}  Bd5 {[%clk 0:01:09]} 21. Bxd5+ {[%clk 0:00:34]}  Rxd5 {[%clk 0:01:10]} 22. c4 {[%clk 0:00:26]}  exd4 {[%clk 0:00:55]} 23. Nf6+ {[%clk 0:00:16]}  Bxf6 {[%clk 0:00:55]} 24. gxf6 {[%clk 0:00:17]}  Qe4+ {[%clk 0:00:54]} 25. Ka1 {[%clk 0:00:17]}  Rdd8 {[%clk 0:00:37]} 26. f7+ {[%clk 0:00:17]}  Kh8 {[%clk 0:00:33]} 27. fxe8=Q {[%clk 0:00:16]}  Qxe8 {[%clk 0:00:32]} 28. Ng5 {[%clk 0:00:15]}  Rd7 {[%clk 0:00:30]} 29. Qd3 {[%clk 0:00:13]}  Re7 {[%clk 0:00:28]} 30. a3 {[%clk 0:00:11]}  Kg8 {[%clk 0:00:27]} 31. Qg3 {[%clk 0:00:10]}  Qd7 {[%clk 0:00:20]} 32. Qb8 {[%clk 0:00:09]}  Re8 {[%clk 0:00:19]} 33. Qf4 {[%clk 0:00:06]}  Qg7 {[%clk 0:00:15]} 34. Ka2 {[%clk 0:00:05]}  h5 {[%clk 0:00:13]} 35. Rg3 {[%clk 0:00:04]}  Qe7 {[%clk 0:00:10]} 36. Rhg1 {[%clk 0:00:03]}  Kg7 {[%clk 0:00:10]} 37. Nf3 {[%clk 0:00:03]}  Qf7 {[%clk 0:00:08]} 38. Qxf7+ {[%clk 0:00:03]}  Kxf7 {[%clk 0:00:09]} 39. Nh4 {[%clk 0:00:02]}  Re6 {[%clk 0:00:09]} 40. Rf3+ {[%clk 0:00:02]}  Kg7 {[%clk 0:00:08]} 41. Rfg3 {[%clk 0:00:01]}  Kf7 {[%clk 0:00:08]} 42. Nf3 {[%clk 0:00:01]}  Rd6 {[%clk 0:00:07]} 43. Ng5+ {[%clk 0:00:01]}  Kg7 {[%clk 0:00:07]} 44. Ne4 {[%clk 0:00:01]}  Re6 {[%clk 0:00:07]} 45. f3 {[%clk 0:00:02]}  a6 {[%clk 0:00:06]} 46. Rg5 {[%clk 0:00:02]}  Rc6 {[%clk 0:00:06]} 47. Rxh5 {[%clk 0:00:02]}  Kf7 {[%clk 0:00:04]} 48. Rh8 {[%clk 0:00:01]}  Kg7 {[%clk 0:00:03]} 49. Rh2 {[%clk 0:00:02]}  b5 {[%clk 0:00:03]} 50. Rgh1 {[%clk 0:00:03]}  bxc4 {[%clk 0:00:04]} 51. Nd2 {[%clk 0:00:02]}  c3 {[%clk 0:00:04]} 52. Nc4 {[%clk 0:00:03]}  cxb2 {[%clk 0:00:03]} 53. Kb3 {[%clk 0:00:03]}  Re6 {[%clk 0:00:04]} 54. Kxb2 {[%clk 0:00:04]}  d3 {[%clk 0:00:03]} 55. Kc3 {[%clk 0:00:04]}  Rf6 {[%clk 0:00:04]} 56. Kxd3 {[%clk 0:00:04]}  Rxf3+ {[%clk 0:00:04]} 57. Ne3 {[%clk 0:00:05]}  c4+ {[%clk 0:00:04]} 58. Ke4 {[%clk 0:00:05]}  Rf7 {[%clk 0:00:03]} 59. Rf1 {[%clk 0:00:05]}  Re7+ {[%clk 0:00:03]} 60. Kd4 {[%clk 0:00:06]}  c3 {[%clk 0:00:04]} 61. Rc2 {[%clk 0:00:04]}  Ne6+ {[%clk 0:00:03]} 62. Kd3 {[%clk 0:00:04]}  Nc5+ {[%clk 0:00:03]} 63. Ke2 {[%clk 0:00:03]}  Ne4 {[%clk 0:00:03]} 64. Rg1 {[%clk 0:00:03]}  Kf6 {[%clk 0:00:02]} 65. Nd5+ {[%clk 0:00:02]}  Ke6 {[%clk 0:00:01]} 66. Nxe7 {[%clk 0:00:03]}  Kxe7 {[%clk 0:00:01]} 67. Ke3 {[%clk 0:00:03]} 1-0


[Site "https://www.chess.com"]

[Event "Titled Tuesday Blitz February 22 Early 2022"]
[White "Goltseva, Ekaterina"]
[Black "Caetano, Ryan Wesley Da Costa"]
[WhiteFideId "24173770"]
[BlackFideId "2188554"]
[WhiteElo "2140"]
[BlackElo "2026"]
[Result "1-0"]
[Round "01"]
[TimeControl "180+1"]
[Date "2022.02.22"]
[WhiteClock "0:00:10"]
[BlackClock "0:00:02"]

1. d4 {[%clk 0:03:00]}  Nf6 {[%clk 0:02:46]} 2. c4 {[%clk 0:03:00]}  g6 {[%clk 0:02:41]} 3. Nc3 {[%clk 0:03:00]}  Bg7 {[%clk 0:02:42]} 4. e4 {[%clk 0:02:59]}  d6 {[%clk 0:02:42]} 5. Nge2 {[%clk 0:02:59]}  O-O {[%clk 0:02:41]} 6. Ng3 {[%clk 0:03:00]}  c5 {[%clk 0:02:41]} 7. d5 {[%clk 0:03:00]}  e6 {[%clk 0:02:41]} 8. Be2 {[%clk 0:02:59]}  exd5 {[%clk 0:02:38]} 9. cxd5 {[%clk 0:03:00]}  a6 {[%clk 0:02:36]} 10. a4 {[%clk 0:02:59]}  Qa5 {[%clk 0:02:34]} 11. O-O {[%clk 0:02:49]}  b5 {[%clk 0:02:32]} 12. Bf4 {[%clk 0:02:46]}  b4 {[%clk 0:02:28]} 13. Nb1 {[%clk 0:02:46]}  Qc7 {[%clk 0:02:22]} 14. Nd2 {[%clk 0:02:44]}  Re8 {[%clk 0:02:17]} 15. Qc2 {[%clk 0:02:39]}  Nbd7 {[%clk 0:02:14]} 16. Nc4 {[%clk 0:02:38]}  Bf8 {[%clk 0:01:58]} 17. a5 {[%clk 0:02:25]}  Bb7 {[%clk 0:01:46]} 18. h4 {[%clk 0:02:17]}  Ne5 {[%clk 0:01:39]} 19. Bxe5 {[%clk 0:01:59]}  dxe5 {[%clk 0:01:39]} 20. h5 {[%clk 0:01:59]}  Rad8 {[%clk 0:01:25]} 21. Rad1 {[%clk 0:01:47]}  Bd6 {[%clk 0:01:16]} 22. Qc1 {[%clk 0:01:45]}  Qe7 {[%clk 0:01:12]} 23. Qh6 {[%clk 0:01:37]}  Bc8 {[%clk 0:01:00]} 24. f3 {[%clk 0:01:32]}  Qf8 {[%clk 0:00:53]} 25. Qg5 {[%clk 0:01:28]}  Qe7 {[%clk 0:00:52]} 26. Qe3 {[%clk 0:01:28]}  Qc7 {[%clk 0:00:42]} 27. Kf2 {[%clk 0:01:26]}  Bd7 {[%clk 0:00:40]} 28. Rh1 {[%clk 0:01:19]}  Bf8 {[%clk 0:00:36]} 29. Qg5 {[%clk 0:01:12]}  Bg7 {[%clk 0:00:33]} 30. Qh4 {[%clk 0:01:01]}  Bb5 {[%clk 0:00:31]} 31. Ra1 {[%clk 0:00:59]}  Qe7 {[%clk 0:00:21]} 32. b3 {[%clk 0:00:47]}  Rd7 {[%clk 0:00:19]} 33. Ne3 {[%clk 0:00:39]}  Bxe2 {[%clk 0:00:08]} 34. Kxe2 {[%clk 0:00:39]}  Qd6 {[%clk 0:00:06]} 35. Qg5 {[%clk 0:00:37]}  h6 {[%clk 0:00:05]} 36. Qh4 {[%clk 0:00:37]}  g5 {[%clk 0:00:06]} 37. Qh3 {[%clk 0:00:37]}  Bf8 {[%clk 0:00:06]} 38. Ngf5 {[%clk 0:00:36]}  Qc7 {[%clk 0:00:05]} 39. Nc4 {[%clk 0:00:36]}  Red8 {[%clk 0:00:03]} 40. Qg3 {[%clk 0:00:36]}  Ne8 {[%clk 0:00:03]} 41. Rhf1 {[%clk 0:00:34]}  f6 {[%clk 0:00:02]} 42. Nb6 {[%clk 0:00:30]}  Rf7 {[%clk 0:00:02]} 43. Rac1 {[%clk 0:00:29]}  Nd6 {[%clk 0:00:02]} 44. Nxd6 {[%clk 0:00:25]}  Bxd6 {[%clk 0:00:03]} 45. Rc4 {[%clk 0:00:23]}  Qb7 {[%clk 0:00:04]} 46. Rfc1 {[%clk 0:00:22]}  Rc7 {[%clk 0:00:04]} 47. Qf2 {[%clk 0:00:22]}  Rb8 {[%clk 0:00:05]} 48. Qe3 {[%clk 0:00:18]}  Rf7 {[%clk 0:00:05]} 49. g3 {[%clk 0:00:18]}  Rc7 {[%clk 0:00:06]} 50. Rf1 {[%clk 0:00:17]}  Re8 {[%clk 0:00:06]} 51. Rcc1 {[%clk 0:00:17]}  Kg7 {[%clk 0:00:07]} 52. Nc4 {[%clk 0:00:18]}  Bf8 {[%clk 0:00:07]} 53. Rg1 {[%clk 0:00:18]}  Qb5 {[%clk 0:00:07]} 54. Rcf1 {[%clk 0:00:17]}  Rd7 {[%clk 0:00:08]} 55. f4 {[%clk 0:00:17]}  exf4 {[%clk 0:00:08]} 56. gxf4 {[%clk 0:00:18]}  Rde7 {[%clk 0:00:08]} 57. e5 {[%clk 0:00:17]}  Qb7 {[%clk 0:00:06]} 58. d6 {[%clk 0:00:15]}  Re6 {[%clk 0:00:04]} 59. Qd3 {[%clk 0:00:10]}  Qb5 {[%clk 0:00:03]} 60. Kd2 {[%clk 0:00:09]}  Rd8 {[%clk 0:00:02]} 61. Kc2 {[%clk 0:00:10]}  fxe5 {[%clk 0:00:02]} 62. fxe5 {[%clk 0:00:09]}  Rd7 {[%clk 0:00:02]} 63. Rf6 {[%clk 0:00:09]}  Rxf6 {[%clk 0:00:02]} 64. exf6+ {[%clk 0:00:10]}  Kf7 {[%clk 0:00:02]} 65. Qg6+ {[%clk 0:00:10]}  Ke6 {[%clk 0:00:02]} 66. Re1+ {[%clk 0:00:10]}  Kd5 {[%clk 0:00:02]} 67. Qe4# {[%clk 0:00:10]} 1-0


[Site "https://www.chess.com"]

[Event "Titled Tuesday Blitz February 22 Early 2022"]
[White "Gormally, Daniel W"]
[Black "Golizadeh, Asghar"]
[WhiteFideId "406465"]
[BlackFideId "12505269"]
[WhiteElo "2543"]
[BlackElo "2403"]
[Result "1-0"]
[Round "01"]
[TimeControl "180+1"]
[Date "2022.02.22"]
[WhiteClock "0:01:39"]
[BlackClock "0:01:57"]

1. d4 {[%clk 0:02:59]}  Nf6 {[%clk 0:02:59]} 2. Nf3 {[%clk 0:03:00]}  g6 {[%clk 0:02:59]} 3. Nc3 {[%clk 0:02:58]}  d5 {[%clk 0:02:58]} 4. Bf4 {[%clk 0:02:58]}  Bg7 {[%clk 0:02:58]} 5. e3 {[%clk 0:02:58]}  O-O {[%clk 0:02:56]} 6. Be2 {[%clk 0:02:58]}  c5 {[%clk 0:02:55]} 7. O-O {[%clk 0:02:57]}  Nc6 {[%clk 0:02:54]} 8. Ne5 {[%clk 0:02:58]}  Bf5 {[%clk 0:02:49]} 9. Nxc6 {[%clk 0:02:42]}  bxc6 {[%clk 0:02:47]} 10. Na4 {[%clk 0:02:43]}  cxd4 {[%clk 0:02:45]} 11. exd4 {[%clk 0:02:43]}  Ne4 {[%clk 0:02:42]} 12. c3 {[%clk 0:02:36]}  g5 {[%clk 0:02:35]} 13. Be3 {[%clk 0:02:35]}  e6 {[%clk 0:02:26]} 14. f3 {[%clk 0:02:19]}  Nd6 {[%clk 0:02:24]} 15. Qd2 {[%clk 0:02:20]}  h6 {[%clk 0:02:22]} 16. Nc5 {[%clk 0:02:09]}  Rb8 {[%clk 0:02:21]} 17. b3 {[%clk 0:02:08]}  Bg6 {[%clk 0:02:12]} 18. f4 {[%clk 0:02:04]}  Bf6 {[%clk 0:02:01]} 19. fxg5 {[%clk 0:01:57]}  Bxg5 {[%clk 0:02:02]} 20. Bxg5 {[%clk 0:01:51]}  Bh7 {[%clk 0:02:02]} 21. Bxd8 {[%clk 0:01:50]}  Rbxd8 {[%clk 0:01:54]} 22. Qxh6 {[%clk 0:01:49]}  Nf5 {[%clk 0:01:55]} 23. Qg5+ {[%clk 0:01:46]}  Kh8 {[%clk 0:01:54]} 24. Qf6+ {[%clk 0:01:47]}  Ng7 {[%clk 0:01:55]} 25. Rf3 {[%clk 0:01:43]}  Rde8 {[%clk 0:01:56]} 26. Rh3 {[%clk 0:01:41]}  Rg8 {[%clk 0:01:57]} 27. Bd3 {[%clk 0:01:39]} 1-0


[Site "https://www.chess.com"]

[Event "Titled Tuesday Blitz February 22 Early 2022"]
[White "Goryachkina, Aleksandra"]
[Black "Dwilewicz, Katarzyna"]
[WhiteFideId "4147103"]
[BlackFideId "1148486"]
[WhiteElo "2426"]
[BlackElo "1907"]
[Result "0-1"]
[Round "01"]
[TimeControl "180+1"]
[Date "2022.02.22"]
[WhiteClock "0:00:01"]
[BlackClock "0:00:04"]

1. e4 {[%clk 0:02:59]}  c5 {[%clk 0:02:59]} 2. Nf3 {[%clk 0:02:58]}  e6 {[%clk 0:02:59]} 3. c3 {[%clk 0:02:58]}  d5 {[%clk 0:02:58]} 4. exd5 {[%clk 0:02:58]}  exd5 {[%clk 0:02:57]} 5. d4 {[%clk 0:02:57]}  Nc6 {[%clk 0:02:57]} 6. Bb5 {[%clk 0:02:54]}  Nf6 {[%clk 0:02:55]} 7. O-O {[%clk 0:02:52]}  Be7 {[%clk 0:02:53]} 8. dxc5 {[%clk 0:02:48]}  Bxc5 {[%clk 0:02:53]} 9. Bg5 {[%clk 0:02:44]}  Be6 {[%clk 0:02:42]} 10. Nbd2 {[%clk 0:02:41]}  O-O {[%clk 0:02:41]} 11. Nb3 {[%clk 0:02:41]}  Bd6 {[%clk 0:02:31]} 12. h3 {[%clk 0:02:28]}  h6 {[%clk 0:02:29]} 13. Be3 {[%clk 0:02:14]}  Ne4 {[%clk 0:02:11]} 14. Nbd4 {[%clk 0:02:07]}  Bd7 {[%clk 0:02:08]} 15. Re1 {[%clk 0:01:55]}  Qf6 {[%clk 0:02:01]} 16. Bf1 {[%clk 0:01:38]}  a6 {[%clk 0:01:37]} 17. Nxc6 {[%clk 0:01:31]}  bxc6 {[%clk 0:01:33]} 18. c4 {[%clk 0:00:55]}  Bb4 {[%clk 0:01:15]} 19. Bd4 {[%clk 0:00:44]}  Qf4 {[%clk 0:00:52]} 20. Be5 {[%clk 0:00:22]}  Qf5 {[%clk 0:00:50]} 21. Re3 {[%clk 0:00:20]}  Bc5 {[%clk 0:00:44]} 22. Bd4 {[%clk 0:00:20]}  Bxd4 {[%clk 0:00:36]} 23. Qxd4 {[%clk 0:00:19]}  Be6 {[%clk 0:00:27]} 24. cxd5 {[%clk 0:00:20]}  cxd5 {[%clk 0:00:27]} 25. Rd1 {[%clk 0:00:19]}  Rab8 {[%clk 0:00:26]} 26. Bd3 {[%clk 0:00:18]}  Rfc8 {[%clk 0:00:10]} 27. b3 {[%clk 0:00:17]}  Rc6 {[%clk 0:00:05]} 28. Bxe4 {[%clk 0:00:15]}  dxe4 {[%clk 0:00:06]} 29. Qxe4 {[%clk 0:00:15]}  Qxe4 {[%clk 0:00:05]} 30. Rxe4 {[%clk 0:00:16]}  Rc2 {[%clk 0:00:05]} 31. Rd2 {[%clk 0:00:16]}  Rbc8 {[%clk 0:00:05]} 32. Ree2 {[%clk 0:00:15]}  Rc1+ {[%clk 0:00:05]} 33. Kh2 {[%clk 0:00:15]}  g6 {[%clk 0:00:04]} 34. Nd4 {[%clk 0:00:14]}  Bd7 {[%clk 0:00:02]} 35. Rc2 {[%clk 0:00:13]}  R1xc2 {[%clk 0:00:02]} 36. Rxc2 {[%clk 0:00:14]}  Rxc2 {[%clk 0:00:02]} 37. Nxc2 {[%clk 0:00:14]}  Kf8 {[%clk 0:00:03]} 38. Kg3 {[%clk 0:00:14]}  Ke7 {[%clk 0:00:03]} 39. Kf4 {[%clk 0:00:14]}  Kd6 {[%clk 0:00:04]} 40. Ke3 {[%clk 0:00:13]}  Bf5 {[%clk 0:00:04]} 41. Nd4 {[%clk 0:00:11]}  Bb1 {[%clk 0:00:04]} 42. a3 {[%clk 0:00:11]}  Kd5 {[%clk 0:00:04]} 43. Ne2 {[%clk 0:00:11]}  Bc2 {[%clk 0:00:02]} 44. Nc3+ {[%clk 0:00:11]}  Kc5 {[%clk 0:00:01]} 45. b4+ {[%clk 0:00:06]}  Kc4 {[%clk 0:00:02]} 46. Kd2 {[%clk 0:00:03]}  Bf5 {[%clk 0:00:02]} 47. Ne2 {[%clk 0:00:02]}  Bc8 {[%clk 0:00:02]} 48. Kc2 {[%clk 0:00:02]}  Bf5+ {[%clk 0:00:02]} 49. Kb2 {[%clk 0:00:03]}  Bd3 {[%clk 0:00:02]} 50. Nc3 {[%clk 0:00:03]}  Bf1 {[%clk 0:00:02]} 51. g3 {[%clk 0:00:02]}  Bxh3 {[%clk 0:00:02]} 52. Ne4 {[%clk 0:00:03]}  Be6 {[%clk 0:00:02]} 53. Nd6+ {[%clk 0:00:03]}  Kd5 {[%clk 0:00:02]} 54. Nb7 {[%clk 0:00:03]}  h5 {[%clk 0:00:02]} 55. Kc3 {[%clk 0:00:03]}  g5 {[%clk 0:00:03]} 56. Kd3 {[%clk 0:00:04]}  h4 {[%clk 0:00:03]} 57. gxh4 {[%clk 0:00:04]}  gxh4 {[%clk 0:00:03]} 58. Ke3 {[%clk 0:00:04]}  h3 {[%clk 0:00:04]} 59. Kf3 {[%clk 0:00:05]}  Kc4 {[%clk 0:00:04]} 60. Nd6+ {[%clk 0:00:04]}  Kb3 {[%clk 0:00:04]} 61. Kg3 {[%clk 0:00:04]}  Kxa3 {[%clk 0:00:04]} 62. f4 {[%clk 0:00:04]}  Kxb4 {[%clk 0:00:05]} 63. f5 {[%clk 0:00:04]}  Bd7 {[%clk 0:00:05]} 64. Nxf7 {[%clk 0:00:04]}  Bxf5 {[%clk 0:00:05]} 65. Nd6 {[%clk 0:00:04]}  Be6 {[%clk 0:00:04]} 66. Ne8 {[%clk 0:00:01]}  a5 {[%clk 0:00:05]} 67. Nc7 {[%clk 0:00:01]}  Bd7 {[%clk 0:00:04]} 68. Nd5+ {[%clk 0:00:02]}  Kc5 {[%clk 0:00:03]} 69. Nf6 {[%clk 0:00:02]}  Be6 {[%clk 0:00:03]} 70. Ne4+ {[%clk 0:00:01]}  Kb4 {[%clk 0:00:04]} 0-1


[Site "https://www.chess.com"]

[Event "Titled Tuesday Blitz February 22 Early 2022"]
[White "Ibrahimli, Murad"]
[Black "Loy, Konstantin"]
[WhiteFideId "13410229"]
[BlackFideId "14122499"]
[WhiteElo "2109"]
[BlackElo "2084"]
[Result "1-0"]
[Round "01"]
[TimeControl "180+1"]
[Date "2022.02.22"]
[WhiteClock "0:00:28"]
[BlackClock "0:00:01"]

1. e4 {[%clk 0:03:00]}  c5 {[%clk 0:02:59]} 2. Nf3 {[%clk 0:03:01]}  d6 {[%clk 0:02:59]} 3. d4 {[%clk 0:03:01]}  cxd4 {[%clk 0:03:00]} 4. Qxd4 {[%clk 0:03:01]}  Nc6 {[%clk 0:02:58]} 5. Bb5 {[%clk 0:03:01]}  Bd7 {[%clk 0:02:58]} 6. Bxc6 {[%clk 0:03:01]}  Bxc6 {[%clk 0:02:59]} 7. Nc3 {[%clk 0:02:59]}  h6 {[%clk 0:02:58]} 8. Be3 {[%clk 0:02:56]}  e5 {[%clk 0:02:57]} 9. Qd3 {[%clk 0:02:55]}  Nf6 {[%clk 0:02:58]} 10. O-O-O {[%clk 0:02:54]}  Be7 {[%clk 0:02:58]} 11. Rhg1 {[%clk 0:02:51]}  Qa5 {[%clk 0:02:41]} 12. Nd2 {[%clk 0:02:45]}  Rd8 {[%clk 0:02:10]} 13. Nb3 {[%clk 0:02:36]}  Qc7 {[%clk 0:02:00]} 14. f4 {[%clk 0:02:36]}  d5 {[%clk 0:01:47]} 15. fxe5 {[%clk 0:02:34]}  Nxe4 {[%clk 0:01:36]} 16. Bd4 {[%clk 0:02:20]}  O-O {[%clk 0:01:28]} 17. Kb1 {[%clk 0:02:20]}  Bb4 {[%clk 0:01:11]} 18. Ne2 {[%clk 0:01:57]}  a6 {[%clk 0:01:02]} 19. Nf4 {[%clk 0:01:56]}  Bb5 {[%clk 0:00:58]} 20. Qf3 {[%clk 0:01:56]}  Ng5 {[%clk 0:00:51]} 21. Qg3 {[%clk 0:01:53]}  Ne6 {[%clk 0:00:50]} 22. c3 {[%clk 0:01:43]}  Be7 {[%clk 0:00:48]} 23. Rde1 {[%clk 0:01:17]}  Ba4 {[%clk 0:00:36]} 24. Nh5 {[%clk 0:00:54]}  Bxb3 {[%clk 0:00:28]} 25. axb3 {[%clk 0:00:54]}  Kh8 {[%clk 0:00:26]} 26. Rgf1 {[%clk 0:00:52]}  Rc8 {[%clk 0:00:21]} 27. Qg4 {[%clk 0:00:45]}  Bc5 {[%clk 0:00:14]} 28. Rd1 {[%clk 0:00:32]}  Bxd4 {[%clk 0:00:14]} 29. Rxd4 {[%clk 0:00:32]}  g6 {[%clk 0:00:08]} 30. Nf6 {[%clk 0:00:30]}  Qxe5 {[%clk 0:00:04]} 31. Rxd5 {[%clk 0:00:29]}  Qe2 {[%clk 0:00:01]} 32. Qxe2 {[%clk 0:00:28]} 1-0


[Site "https://www.chess.com"]

[Event "Titled Tuesday Blitz February 22 Early 2022"]
[White "Indjic, Aleksandar"]
[Black "Piesik, Piotr"]
[WhiteFideId "911925"]
[BlackFideId "1136194"]
[WhiteElo "2616"]
[BlackElo "2232"]
[Result "1-0"]
[Round "01"]
[TimeControl "180+1"]
[Date "2022.02.22"]
[WhiteClock "0:00:22"]
[BlackClock "0:00:02"]

1. e4 {[%clk 0:03:00]}  e6 {[%clk 0:02:59]} 2. Qe2 {[%clk 0:02:59]}  c5 {[%clk 0:02:58]} 3. g3 {[%clk 0:02:58]}  Nc6 {[%clk 0:02:59]} 4. Bg2 {[%clk 0:02:58]}  g6 {[%clk 0:02:59]} 5. f4 {[%clk 0:02:58]}  Bg7 {[%clk 0:02:59]} 6. c3 {[%clk 0:02:57]}  d6 {[%clk 0:02:59]} 7. Nf3 {[%clk 0:02:58]}  Nge7 {[%clk 0:02:59]} 8. O-O {[%clk 0:02:57]}  O-O {[%clk 0:03:00]} 9. d3 {[%clk 0:02:57]}  Rb8 {[%clk 0:02:59]} 10. a4 {[%clk 0:02:53]}  a6 {[%clk 0:02:59]} 11. Be3 {[%clk 0:02:51]}  b5 {[%clk 0:02:59]} 12. d4 {[%clk 0:02:49]}  cxd4 {[%clk 0:02:57]} 13. cxd4 {[%clk 0:02:49]}  d5 {[%clk 0:02:57]} 14. e5 {[%clk 0:02:48]}  Nf5 {[%clk 0:02:57]} 15. Bf2 {[%clk 0:02:48]}  bxa4 {[%clk 0:02:50]} 16. g4 {[%clk 0:02:47]}  Nfe7 {[%clk 0:02:48]} 17. Nc3 {[%clk 0:02:46]}  Na5 {[%clk 0:02:35]} 18. Nxa4 {[%clk 0:02:45]}  Bd7 {[%clk 0:02:34]} 19. Nc3 {[%clk 0:02:38]}  Nc4 {[%clk 0:02:33]} 20. Ra2 {[%clk 0:02:37]}  Bb5 {[%clk 0:02:13]} 21. Nxb5 {[%clk 0:02:28]}  Rxb5 {[%clk 0:02:14]} 22. Ne1 {[%clk 0:02:24]}  Nc6 {[%clk 0:02:09]} 23. f5 {[%clk 0:02:06]}  Qb6 {[%clk 0:02:03]} 24. f6 {[%clk 0:01:54]}  Bh6 {[%clk 0:02:00]} 25. Nf3 {[%clk 0:01:54]}  Bf4 {[%clk 0:01:50]} 26. Rb1 {[%clk 0:01:52]}  Rb8 {[%clk 0:01:47]} 27. Bf1 {[%clk 0:01:47]}  Rb3 {[%clk 0:01:42]} 28. Rba1 {[%clk 0:01:42]}  a5 {[%clk 0:01:39]} 29. Rb1 {[%clk 0:01:37]}  Nb4 {[%clk 0:01:27]} 30. Raa1 {[%clk 0:01:36]}  Nd3 {[%clk 0:01:22]} 31. Kh1 {[%clk 0:01:16]}  Ndxb2 {[%clk 0:01:01]} 32. Bg1 {[%clk 0:01:08]}  a4 {[%clk 0:00:55]} 33. Qf2 {[%clk 0:01:04]}  Be3 {[%clk 0:00:50]} 34. Qh4 {[%clk 0:01:03]}  Qd8 {[%clk 0:00:49]} 35. Bxe3 {[%clk 0:01:01]}  Nxe3 {[%clk 0:00:44]} 36. Ng5 {[%clk 0:01:00]}  h5 {[%clk 0:00:41]} 37. gxh5 {[%clk 0:00:56]}  Nf5 {[%clk 0:00:40]} 38. Qf4 {[%clk 0:00:54]}  gxh5 {[%clk 0:00:28]} 39. Be2 {[%clk 0:00:53]}  Nd3 {[%clk 0:00:22]} 40. Bxd3 {[%clk 0:00:50]}  Rxd3 {[%clk 0:00:22]} 41. Rg1 {[%clk 0:00:50]}  Kf8 {[%clk 0:00:10]} 42. Nh7+ {[%clk 0:00:46]}  Ke8 {[%clk 0:00:10]} 43. Rg8+ {[%clk 0:00:46]}  Kd7 {[%clk 0:00:11]} 44. Rxd8+ {[%clk 0:00:46]}  Rxd8 {[%clk 0:00:11]} 45. Ng5 {[%clk 0:00:46]}  Rxd4 {[%clk 0:00:11]} 46. Qf2 {[%clk 0:00:46]}  Ke8 {[%clk 0:00:10]} 47. Rg1 {[%clk 0:00:41]}  a3 {[%clk 0:00:08]} 48. Qc2 {[%clk 0:00:40]}  Rc4 {[%clk 0:00:07]} 49. Qb3 {[%clk 0:00:40]}  Rg4 {[%clk 0:00:05]} 50. Qxa3 {[%clk 0:00:36]}  Rxg1+ {[%clk 0:00:04]} 51. Kxg1 {[%clk 0:00:37]}  d4 {[%clk 0:00:04]} 52. Qd3 {[%clk 0:00:24]}  Rd5 {[%clk 0:00:03]} 53. Nf3 {[%clk 0:00:24]}  Kd7 {[%clk 0:00:03]} 54. Kf2 {[%clk 0:00:24]}  Kc6 {[%clk 0:00:03]} 55. Qc4+ {[%clk 0:00:23]}  Rc5 {[%clk 0:00:03]} 56. Nxd4+ {[%clk 0:00:22]}  Kb6 {[%clk 0:00:02]} 57. Qb4+ {[%clk 0:00:22]} 1-0


[Site "https://www.chess.com"]

[Event "Titled Tuesday Blitz February 22 Early 2022"]
[White "Jodorcovsky Werjivker, Paulo"]
[Black "Murzin, Volodar"]
[WhiteFideId "3700305"]
[BlackFideId "44155573"]
[WhiteElo "2075"]
[BlackElo "2585"]
[Result "0-1"]
[Round "01"]
[TimeControl "180+1"]
[Date "2022.02.22"]
[WhiteClock "0:00:02"]
[BlackClock "0:00:27"]

1. d4 {[%clk 0:03:00]}  Nf6 {[%clk 0:02:59]} 2. c4 {[%clk 0:03:00]}  g6 {[%clk 0:02:59]} 3. Nc3 {[%clk 0:03:00]}  Bg7 {[%clk 0:03:00]} 4. e4 {[%clk 0:03:00]}  O-O {[%clk 0:02:59]} 5. Be2 {[%clk 0:03:00]}  d6 {[%clk 0:02:59]} 6. Nf3 {[%clk 0:02:59]}  e5 {[%clk 0:02:58]} 7. d5 {[%clk 0:02:59]}  Na6 {[%clk 0:02:57]} 8. Nd2 {[%clk 0:02:54]}  c6 {[%clk 0:02:55]} 9. O-O {[%clk 0:02:48]}  Bd7 {[%clk 0:02:53]} 10. a3 {[%clk 0:02:45]}  Rc8 {[%clk 0:02:52]} 11. Nb3 {[%clk 0:02:38]}  h5 {[%clk 0:02:40]} 12. Be3 {[%clk 0:02:37]}  b6 {[%clk 0:02:37]} 13. Bg5 {[%clk 0:02:33]}  Nc5 {[%clk 0:02:35]} 14. Nxc5 {[%clk 0:02:32]}  bxc5 {[%clk 0:02:35]} 15. dxc6 {[%clk 0:02:31]}  Bxc6 {[%clk 0:02:35]} 16. Qd2 {[%clk 0:02:23]}  Qc7 {[%clk 0:02:18]} 17. Nb5 {[%clk 0:01:59]}  Bxb5 {[%clk 0:02:17]} 18. cxb5 {[%clk 0:01:59]}  Nxe4 {[%clk 0:02:17]} 19. Qe3 {[%clk 0:01:58]}  d5 {[%clk 0:02:17]} 20. Bf3 {[%clk 0:01:46]}  Nxg5 {[%clk 0:01:53]} 21. Qxg5 {[%clk 0:01:46]}  e4 {[%clk 0:01:52]} 22. Be2 {[%clk 0:01:25]}  Qd8 {[%clk 0:01:45]} 23. Qd2 {[%clk 0:01:21]}  Bd4 {[%clk 0:01:32]} 24. Rad1 {[%clk 0:01:19]}  Qf6 {[%clk 0:01:29]} 25. b4 {[%clk 0:01:16]}  Rfd8 {[%clk 0:01:26]} 26. bxc5 {[%clk 0:01:14]}  Bxc5 {[%clk 0:01:27]} 27. Qa2 {[%clk 0:01:10]}  d4 {[%clk 0:01:24]} 28. Bc4 {[%clk 0:01:04]}  d3 {[%clk 0:01:24]} 29. Kh1 {[%clk 0:00:57]}  Rd4 {[%clk 0:01:20]} 30. f3 {[%clk 0:00:52]}  e3 {[%clk 0:00:56]} 31. Rxd3 {[%clk 0:00:50]}  e2 {[%clk 0:00:38]} 32. Re1 {[%clk 0:00:27]}  Rxd3 {[%clk 0:00:32]} 33. Bxd3 {[%clk 0:00:24]}  Bf2 {[%clk 0:00:32]} 34. Qxe2 {[%clk 0:00:13]}  Bxe1 {[%clk 0:00:32]} 35. Qxe1 {[%clk 0:00:13]}  Qc3 {[%clk 0:00:32]} 36. Qxc3 {[%clk 0:00:07]}  Rxc3 {[%clk 0:00:33]} 37. Bf1 {[%clk 0:00:07]}  Rxa3 {[%clk 0:00:34]} 38. Kg1 {[%clk 0:00:07]}  Kf8 {[%clk 0:00:31]} 39. Kf2 {[%clk 0:00:08]}  Ke7 {[%clk 0:00:32]} 40. Kg3 {[%clk 0:00:08]}  g5 {[%clk 0:00:30]} 41. Bc4 {[%clk 0:00:08]}  f6 {[%clk 0:00:28]} 42. h4 {[%clk 0:00:08]}  Ra4 {[%clk 0:00:29]} 43. Bd5 {[%clk 0:00:03]}  Rxh4 {[%clk 0:00:29]} 44. Bc6 {[%clk 0:00:03]}  Kd6 {[%clk 0:00:29]} 45. Be8 {[%clk 0:00:02]}  Rb4 {[%clk 0:00:27]} 0-1


[Site "https://www.chess.com"]